[Event "MCCT Oslo Esports Cup 2022"]
[Site "Oslo"]
[Date "2022.04.20"]
[Round "5.2"]
[White "Duda, Jan-Krzysztof"]
[Black "Le, Quang Liem"]
[Result "1-0"]
[ECO "A13"]
[WhiteElo "2750"]
[BlackElo "2709"]
[Annotator "TA"]
[PlyCount "135"]
[EventDate "2022.04.14"]
[EventType "tourn"]
[EventCountry "NOR"]
[SourceTitle "playchess.com"]
[Source "ChessBase"]
[SourceQuality "1"]
[TimeControl "900+10"]

{[%evp 38,135,-205,-214,-205,-202,-132,-127,0,0,0,0,-3,-57,-17,-32,-27,-29,-33,-58,-9,-19,0,-17,-19,-26,-36,-11,24,0,84,0,0,0,0,0,465,445,425,409,703,643,712,619,29978,689,6315,352,809,332,303,302,29982,5694,5360,0,562,291,373,384,733,727,691,476,486,486,469,359,346,351,459,449,463,458,515,512,518,536,533,491,467,477,429,272,351,356,680,558,524,529,676,666,662,646,611,599,1459,1440,12839,5531]} 1. Nf3 {[%emt 0:00:00]} d5 {[%emt 0:00:00]} 2. c4 {[%emt 0:00:02]} e6 {[%emt 0:00:11]} 3. b3 {[%emt 0:00:09]} Nf6 {[%emt 0:00:18]} 4. Bb2 {[%emt 0:00:39]} Be7 {[%emt 0:00:11]} 5. e3 {[%emt 0:00:11]} O-O {[%emt 0:00:03]} 6. Rg1 {[%emt 0:00:04]} c5 {[%emt 0:02:28]} 7. g4 {[%emt 0:00:03]} Nc6 {[%emt 0:00:01]} 8. d3 {[%emt 0:01:06]} d4 {[%emt 0:00:15]} 9. g5 {[%emt 0:00:06]} Ne8 {[%emt 0:00:24]} 10. Nbd2 {[%emt 0:00:49]} e5 {[%emt 0:00:08]} 11. Qe2 {[%emt 0:00:06]} Nd6 {[%emt 0:00:32]} 12. O-O-O {[%emt 0:00:20]} Rb8 {[%emt 0:03:53]} 13. Bg2 {[%emt 0:00:24]} Re8 {[%emt 0:00:24]} 14. h4 {[%emt 0:00:08]} Bg4 {[%emt 0:01:42]} 15. Bh1 {[%emt 0:00:33]} Bh5 {[%emt 0:00:05]} 16. Nf1 {[%emt 0:05:12]} b5 {[%emt 0:00:18]} 17. Ng3 {[%emt 0:00:31]} Bg4 {[%emt 0:01:13]} 18. Ne4 {[%emt 0:00:15]} Bh5 {[%emt 0:00:04]} 19. Ng3 {[%emt 0:02:47]} Bxf3 {[%emt 0:00:16]} 20. Bxf3 {[%emt 0:00:14]} Nb4 {[%emt 0:00:02]} 21. Kb1 {[%emt 0:00:27]} Qa5 {[%emt 0:02:16]} 22. a3 {[%emt 0:00:54] [#]} Na6 {[%emt 0:00:20]} (22... Nxd3 $1 $17 {[%mdl 512]} 23. Qxd3 bxc4 24. bxc4 Qc3 25. Qxc3 dxc3) 23. Qc2 $1 $11 {[%emt 0:00:42]} Nc7 {[%emt 0:00:47]} 24. exd4 {[%emt 0:01:48]} exd4 {[%emt 0:00:28]} 25. Bc6 {[%emt 0:00:27]} ({Better is} 25. Rde1 $11) 25... Rec8 {[%emt 0:00:09]} 26. Ne4 {[%emt 0:00:09]} Qb6 {[%emt 0:00:18]} 27. Nxd6 {[%emt 0:00:27]} Bxd6 {[%emt 0:00:00]} 28. Be4 {[%emt 0:00:13]} a5 {[%emt 0:00:29]} (28... bxc4 $15 29. dxc4 Qxb3 30. Bxh7+ Kf8 31. Qxb3 Rxb3) 29. h5 {[%emt 0:00:26]} a4 {[%emt 0:00:05]} 30. g6 {[%emt 0:00:01]} fxg6 {[%emt 0:00:07]} 31. hxg6 {[%emt 0:00:02]} h6 {[%emt 0:00:02]} 32. bxa4 {[%emt 0:00:12]} b4 {[%emt 0:00:05]} 33. Ka1 {[%emt 0:00:14]} Rf8 {[%emt 0:00:37]} (33... Qa7 $11) 34. Rb1 {[%emt 0:00:24]} ({White should try} 34. axb4 $16 {Hoping for b5.} Qxb4 35. Rb1) 34... b3 $11 {[%emt 0:01:26]} 35. Qe2 {[%emt 0:00:02]} Qa6 {[%emt 0:00:04]} 36. Rh1 {[%emt 0:00:17]} Qxa4 $2 {[%emt 0:00:15][%mdl 8192]} (36... Rbe8 $11 {and Black has nothing to worry.}) 37. Bd5+ $18 {[%emt 0:00:31]} Kh8 {[%emt 0:00:37]} 38. Bf7 {[%emt 0:00:03]} Rxf7 {[%emt 0:00:37]} (38... Qd7 $142 39. Qd2 Rxf7 40. gxf7 Kh7) 39. gxf7 $18 {[%emt 0:00:03]} Qd7 {[%emt 0:00:00]} 40. Bc1 {[%emt 0:00:20]} Bf8 {[%emt 0:00:11] [#]} 41. Qf3 {[%emt 0:00:05]} (41. Bxh6 $142 $1 {[%mdl 512]} gxh6 42. Qe5+ Kh7 43. Qe4+ Kg7 44. Rxh6 $3 {[%mdl 512]} b2+ 45. Ka2 Kxf7 46. Qg6+ Ke7 47. Qf6+ Ke8 48. Re1+ Qe7 49. Rxe7+ Bxe7 50. Qc6+ Kf8 51. Rh8+ Kg7 52. Rxb8) 41... Rb6 {[%emt 0:00:06] [#]} 42. Rb2 $2 {[%emt 0:00:19]} (42. Bxh6 $1 {[%cal Of3g2][%mdl 512] Intending Qg2! and mate.} Rxh6 43. Rxh6+ gxh6 44. Rg1) 42... Kh7 $2 {[%emt 0:00:17] [#]} (42... Qe7 43. Qh5 Qf6) 43. Re2 {[%emt 0:00:17]} (43. Rxb3 $142 $3 {[%mdl 512]} Rf6 44. Rxh6+ $3 {[%mdl 512]} Rxh6 45. Bxh6 gxh6 46. Qg3 Qxf7 47. Rb7) 43... Rf6 $18 {[%emt 0:00:06]} 44. Qe4+ {[%emt 0:00:02]} g6 $2 {[%emt 0:00:11] [#]} (44... Kh8 $18 45. Qe8 b2+ 46. Bxb2 (46. Kxb2 Nxe8 47. Rxh6+ gxh6 $14) 46... Qxf7 47. Qxf7 Rxf7) 45. Qh4 {[%emt 0:00:24]} (45. Bxh6 $142 $1 {[%mdl 512]} b2+ 46. Kb1 Bxh6 47. Qh4 g5 48. f8=Q Qg7 49. Re7 $1 {[%mdl 512]} gxh4 50. Qxf6) 45... Rf5 $18 {[%emt 0:00:15]} 46. Qe4 $2 {[%emt 0:00:11]} ({Only move:} 46. Bxh6 $18 {White threatens Bg5+ and mate.} Rh5 47. Bxf8 Qxf7 {[#]} 48. Qe4 $1) 46... Qxf7 $2 {[%emt 0:00:03][%mdl 8192]} (46... Rf6 $1 $11 {and Black stays safe.}) 47. f4 {[%emt 0:00:02]} h5 {[%emt 0:00:15]} 48. Kb2 {[%emt 0:00:04]} Rf6 $2 {[%emt 0:00:02]} (48... Bd6 49. Bd2 (49. Kxb3 Kg7 $18) 49... Kg7) 49. Rxh5+ $18 {[%emt 0:00:04]} Kg8 {[%emt 0:00:03]} 50. Rg5 {[%emt 0:00:09]} Ne6 {[%emt 0:00:10]} 51. Rg4 {[%emt 0:00:05]} Ng7 {[%emt 0:00:03]} 52. Qd5 {[%emt 0:00:19]} Qxd5 {[%emt 0:00:02]} 53. cxd5 {[%emt 0:00:00]} Rb6 {[%emt 0:00:00]} 54. Rg1 {[%emt 0:00:21]} Kf7 {[%emt 0:00:04]} 55. Bd2 {[%emt 0:00:03]} Ra6 {[%emt 0:00:43]} 56. Kxb3 {[%emt 0:00:06]} c4+ {[%emt 0:00:01]} 57. Kxc4 {[%emt 0:00:04]} Rxa3 {[%emt 0:00:02]} 58. Rb1 {[%emt 0:00:05]} Ra4+ {[%emt 0:00:07]} 59. Kb5 {[%emt 0:00:14]} Ra2 {[%emt 0:00:09]} 60. Rbe1 {[%emt 0:00:07]} Ra3 {[%emt 0:00:15]} 61. Rc1 {[%emt 0:00:31]} Bd6 $2 {[%emt 0:00:14]} (61... Rb3+ 62. Kc4 Rb7) 62. Rc8 {[%emt 0:00:24]} Nf5 {[%emt 0:00:09]} 63. Rd8 {[%emt 0:00:05]} Rxd3 {[%emt 0:00:19]} 64. Rd7+ {[%emt 0:00:03]} Kf8 {[%emt 0:00:01]} 65. Kc4 {[%emt 0:00:21]} Ra3 {[%emt 0:00:02]} 66. Bb4 {[%emt 0:00:05]} Re3 {[%emt 0:00:51]} 67. Rxd6 {[%emt 0:00:14]} Rxe2 {[%emt 0:00:21]} 68. Re6+ {[%emt 0:00:01]} 1-0

[Event "MCCT Oslo Esports Cup 2022"]
[Site "Oslo"]
[Date "2022.04.20"]
[Round "5.2"]
[White "Hansen, Eric"]
[Black "Praggnanandhaa R"]
[Result "1/2-1/2"]
[ECO "C84"]
[WhiteElo "2606"]
[BlackElo "2624"]
[Annotator "TA"]
[PlyCount "143"]
[EventDate "2022.04.14"]
[EventType "tourn"]
[EventCountry "NOR"]
[SourceTitle "playchess.com"]
[Source "ChessBase"]
[SourceQuality "1"]
[TimeControl "900+10"]

{[%evp 13,143,40,44,43,40,41,39,45,54,45,51,44,39,23,60,50,81,79,80,52,135,88,165,162,149,119,118,60,116,105,100,59,58,61,63,58,47,15,51,18,31,27,59,46,46,8,8,0,105,0,8,8,8,8,8,8,8,8,8,4,4,0,0,0,0,0,12,14,21,0,0,0,8,8,8,8,8,0,0,0,0,0,0,0,0,0,8,8,8,8,8,0,0,0,0,0,0,0,0,0,0,0,0,0,0,0,0,0,0,0,0,0,0,0,0,0,0,0,0,0,0,0,0,0,0,0,0,0,0,0,0,0]} 1. e4 {[%emt 0:00:00]} e5 {[%emt 0:00:00]} 2. Nf3 {[%emt 0:00:01]} Nc6 {[%emt 0:00:02]} 3. Bb5 {[%emt 0:00:02]} a6 {[%emt 0:00:02]} 4. Ba4 {[%emt 0:00:00]} Nf6 {[%emt 0:00:01]} 5. O-O {[%emt 0:00:01]} Nxe4 {[%emt 0:00:01]} 6. d4 {[%emt 0:00:12]} Be7 {[%emt 0:00:02]} 7. Re1 {[%emt 0:01:55]} b5 {[%emt 0:00:03]} 8. Rxe4 {[%emt 0:01:06] Threatens to win with Bb3. C84: Closed Ruy Lopez: Unusual White 6th moves.} d5 {[%emt 0:00:03] [#]} 9. Nxe5 $1 {[%emt 0:00:01]} Nxe5 {[%emt 0:00:01]} 10. Rxe5 {[%emt 0:00:01] White is slightly better.} bxa4 {[%emt 0:00:01]} 11. Nc3 {[%emt 0:00:11][%csl LRa4,LRd5]} O-O {[%emt 0:00:09]} 12. Rxd5 {[%emt 0:03:08]} Bd6 $1 {[%emt 0:00:02][%cal Oa4a3] [#]} 13. Rh5 $5 $146 {[%emt 0:04:26][%mdl 8] An interesting novelty.} ({Predecessor:} 13. Bf4 Be6 14. Bxd6 cxd6 15. Rh5 g6 16. Rh6 a3 17. bxa3 Rc8 18. Ne4 Bf5 19. Ng3 Bxc2 {½-½ (42) Shirov,A (2662)-Martinez Alcantara,J (2620) Chess.com INT 2020}) 13... g6 {[%emt 0:05:44]} 14. Ra5 $36 {[%emt 0:00:26][%mdl 2048] White is more active.} Re8 {[%emt 0:02:42][%cal Oc7c5]} 15. Bg5 {[%emt 0:00:26][%cal Bc1g5,Bg5h4,Bh4g3][%mdl 32]} f6 {[%emt 0:01:06]} 16. Bh4 {[%emt 0:00:02]} Bb7 {[%emt 0:00:37] Inhibits Qf3.} ({Black should try} 16... a3 $14) 17. Rxa4 {[%emt 0:00:25]} (17. a3 $142) 17... Qe7 {[%emt 0:02:43]} (17... Bc6 $16 {keeps fighting.}) 18. Bg3 {[%emt 0:00:14]} Bb4 {[%emt 0:00:48]} 19. d5 {[%emt 0:03:05] Prevents Bc6.} Qc5 {[%emt 0:01:47]} 20. h3 {[%emt 0:00:37]} (20. Qd3 $16 {aiming for Ne4.} f5 21. Rd1) 20... Rad8 {[%emt 0:00:32]} ({Black should play} 20... Bxc3 $14 21. bxc3 Bxd5) 21. Qd3 {[%emt 0:01:30]} (21. Bxc7 {with more complications.} Bxc3 22. Bxd8 Re1+ 23. Qxe1 Bxe1 24. Rxe1 Qxd5 25. Rae4) 21... Bxc3 {[%emt 0:00:42]} 22. Qxc3 {[%emt 0:00:03]} Qxc3 {[%emt 0:00:08]} 23. bxc3 {[%emt 0:00:00] c4 is the strong threat.} Rxd5 {[%emt 0:00:12]} 24. Rb1 {[%emt 0:00:02]} Rb5 {[%emt 0:00:33]} 25. Rb3 {[%emt 0:00:04]} Re1+ {[%emt 0:00:57]} 26. Kh2 {[%emt 0:00:01]} Re2 {[%emt 0:00:01]} 27. c4 {[%emt 0:00:01]} Rxb3 {[%emt 0:00:02]} 28. cxb3 $11 {[%emt 0:00:00][%mdl 4096] Endgame KRB-KRB} f5 {[%emt 0:00:06][%cal Of5f4]} 29. Rb4 {[%emt 0:00:08]} ({But not} 29. Bxc7 Rxf2 30. Kg1 Rxg2+ 31. Kf1 Rc2 $11) 29... Be4 {[%emt 0:00:02]} 30. Kg1 {[%emt 0:00:10]} Re1+ {[%emt 0:00:03]} 31. Kh2 {[%emt 0:00:00]} Re2 {[%emt 0:00:00] The position is equal.} 32. h4 {[%emt 0:01:19]} f4 {[%emt 0:00:17]} 33. Bxf4 {[%emt 0:00:03] White wants to play Rb8+.} Rxf2 {[%emt 0:00:01]} 34. Bxc7 {[%emt 0:00:04]} Rxg2+ {[%emt 0:00:03]} 35. Kh3 {[%emt 0:00:01] Threatening Ra4.} Rxa2 {[%emt 0:00:03]} 36. c5 {[%emt 0:00:13]} Bd5 {[%emt 0:00:47]} 37. Rb6 {[%emt 0:00:14]} Ra3 {[%emt 0:00:06]} 38. Kg4 {[%emt 0:00:08]} Rxb3 {[%emt 0:00:34]} 39. Rxa6 {[%emt 0:00:04]} Rc3 {[%emt 0:00:04]} 40. Bd6 {[%emt 0:00:05]} h6 {[%emt 0:00:06]} 41. Ra7 {[%emt 0:00:10]} (41. Kf4 $5 {[%cal Rf4e5]}) 41... Rc4+ {[%emt 0:00:02]} 42. Kg3 {[%emt 0:00:01]} g5 {[%emt 0:00:06]} 43. hxg5 {[%emt 0:00:01]} hxg5 {[%emt 0:00:00]} 44. Re7 {[%emt 0:00:01]} Re4 {[%emt 0:00:15]} 45. Rd7 {[%emt 0:00:37]} Re3+ {[%emt 0:00:06]} 46. Kf2 {[%emt 0:00:01]} Rf3+ {[%emt 0:00:15]} 47. Ke2 {[%emt 0:00:01]} Rf7 {[%emt 0:00:25]} 48. Rd8+ {[%emt 0:00:05]} Kh7 {[%emt 0:00:01]} 49. Be5 {[%emt 0:00:01]} Bb7 {[%emt 0:00:13]} 50. Ke3 {[%emt 0:00:09]} Kg6 {[%emt 0:00:04]} 51. Kd4 {[%emt 0:00:10]} Kf5 {[%emt 0:00:24]} 52. Bd6 {[%emt 0:00:01]} Rh7 {[%emt 0:00:13]} 53. Rf8+ {[%emt 0:00:10]} Ke6 {[%emt 0:00:01]} 54. Re8+ {[%emt 0:00:01]} Kf5 {[%emt 0:00:04]} 55. Kc3 {[%emt 0:00:10]} Bc6 {[%emt 0:00:18]} 56. Rc8 {[%emt 0:00:01]} Bb7 {[%emt 0:00:02]} 57. Rb8 {[%emt 0:00:02]} Bd5 {[%emt 0:00:16]} 58. Re8 {[%emt 0:00:06]} Bc6 {[%emt 0:00:02]} 59. Rc8 {[%emt 0:00:14]} Bb7 {[%emt 0:00:02]} 60. Rf8+ {[%emt 0:00:05]} Ke6 {[%emt 0:00:05]} 61. Kb4 {[%emt 0:00:14]} Rh1 {[%emt 0:00:08]} 62. Re8+ {[%emt 0:00:06]} Kf5 {[%emt 0:00:29]} 63. Ka5 {[%emt 0:00:09]} Rb1 {[%emt 0:00:04]} 64. Rb8 {[%emt 0:00:17][%cal Oc5c6]} Ke6 {[%emt 0:00:20]} 65. Re8+ {[%emt 0:00:40]} Kd5 {[%emt 0:00:20]} 66. Re5+ {[%emt 0:00:43]} Kc4 {[%emt 0:00:02]} 67. Rxg5 {[%emt 0:00:07]} Rb5+ {[%emt 0:00:03]} 68. Ka4 {[%emt 0:00:03] [#] White wants to mate with Rg4+.} Bc6 {[%emt 0:00:01]} 69. Ka3 {[%emt 0:00:20]} Kc3 {[%emt 0:00:03][%cal Rb5a5]} 70. Rg3+ {[%emt 0:00:10]} Kc2 {[%emt 0:00:01]} 71. Bc7 {[%emt 0:00:31] Inhibits Ra5+.} Rxc5 {[%emt 0:00:22] ( -> ...Rc4)} 72. Kb4 {[%emt 0:00:07] Inhibits Rc4+.  Weighted Error Value: White=0.08 (flawless) /Black=0.07 (flawless)} 1/2-1/2

[Event "MCCT Oslo Esports Cup 2022"]
[Site "Oslo"]
[Date "2022.04.20"]
[Round "5.3"]
[White "Mamedyarov, Shakhriyar"]
[Black "Giri, Anish"]
[Result "1-0"]
[ECO "E61"]
[WhiteElo "2771"]
[BlackElo "2773"]
[Annotator "TA"]
[PlyCount "61"]
[EventDate "2022.04.14"]
[EventType "tourn"]
[EventCountry "NOR"]
[SourceTitle "playchess.com"]
[Source "ChessBase"]
[SourceQuality "1"]
[TimeControl "900+10"]

{[%evp 13,61,8,22,17,34,4,12,-4,0,-10,2,-10,0,0,0,-19,-11,-24,-14,-19,-19,-17,-16,-80,-20,-22,-17,-15,7,0,0,0,0,0,0,-43,0,0,0,0,6,7,8,8,50,44,547,546,833,812]} 1. d4 {[%emt 0:00:00]} Nf6 {[%emt 0:00:00]} 2. c4 {[%emt 0:00:01]} g6 {[%emt 0:00:02]} 3. Nf3 {[%emt 0:00:00]} Bg7 {[%emt 0:00:01]} 4. e3 {[%emt 0:00:01]} O-O {[%emt 0:00:01]} 5. Be2 {[%emt 0:00:00]} c5 {[%emt 0:00:03]} 6. d5 {[%emt 0:00:01]} d6 {[%emt 0:00:04]} 7. Nc3 {[%emt 0:00:02]} e6 {[%emt 0:00:01]} 8. O-O {[%emt 0:00:08] E61: King's Indian: Early deviations for White, including Smyslov System.} Re8 {[%emt 0:00:10]} 9. Nd2 {[%emt 0:00:02]} Na6 {[%emt 0:00:06]} 10. e4 {[%emt 0:00:05] The position is equal.} b6 {[%emt 0:00:02]} 11. Re1 {[%emt 0:00:08]} Nc7 {[%emt 0:00:06]} 12. h3 {[%emt 0:00:14]} Rb8 {[%emt 0:00:14]} 13. a4 {[%emt 0:00:59]} exd5 {[%emt 0:00:07] [#]} 14. cxd5 $146 {[%emt 0:00:14]} ({Predecessor:} 14. exd5 Na6 15. Nf1 Nb4 16. Ng3 h6 17. Bf4 g5 18. Bd2 Rb7 19. Qb3 Rbe7 20. Bf1 {½-½ (90) Postny,E (2611)-Cheparinov,I (2677) Sibenik 2016}) 14... a6 {[%emt 0:00:11] Against Bb5} 15. Bd3 {[%emt 0:02:07]} b5 {[%emt 0:00:07]} 16. axb5 {[%emt 0:00:00]} axb5 {[%emt 0:00:01]} 17. Nf3 {[%emt 0:00:04]} c4 {[%emt 0:03:20]} 18. Bb1 {[%emt 0:00:08] [#]} (18. Bf1 $1 $11 {keeps the balance.}) 18... b4 {[%emt 0:00:04]} (18... Bd7 $1 $17 19. e5 b4 20. exf6 bxc3 21. Rxe8+ (21. fxg7 cxb2 22. Rxe8+ Nxe8 $15) 21... Nxe8 22. fxg7 cxb2) 19. Ne2 $1 $11 {[%emt 0:00:05]} Nb5 {[%emt 0:00:23]} 20. Ra4 {[%emt 0:01:41]} Nxe4 {[%emt 0:00:26]} 21. Rxb4 {[%emt 0:00:01]} Bf5 {[%emt 0:01:55][%cal Oe4f2]} 22. Be3 {[%emt 0:01:04]} Qa5 {[%emt 0:01:34]} 23. Ra4 {[%emt 0:02:34]} ({Reject} 23. Rxc4 Bxb2 24. Bxe4 Rxe4 $15) 23... Qc7 {[%emt 0:00:04]} 24. Qc1 {[%emt 0:01:11]} Nc5 {[%emt 0:03:18]} 25. Bxc5 {[%emt 0:01:15] Be3 is the strong threat.} ({Much worse is} 25. Rxc4 Bxb1 26. Qxb1 {[#]} Na3 $1 27. Rxc5 Qxc5 $17) 25... Bxb1 {[%emt 0:00:01]} 26. Bd4 {[%emt 0:01:49] Hoping for Bxg7.} Nxd4 {[%emt 0:00:16]} 27. Nexd4 {[%emt 0:00:00]} Rxe1+ {[%emt 0:06:20]} 28. Qxe1 {[%emt 0:00:00]} Bf5 {[%emt 0:00:27]} (28... Rxb2 $2 29. Qe8+ Bf8 30. Ra8 $18) 29. Nc6 {[%emt 0:03:02] Pair of Knights!} Bxb2 $2 {[%emt 0:00:05][%mdl 8192]} (29... c3 $1 $14 30. Nxb8 cxb2 31. Qe8+ Bf8) 30. Nxb8 $18 {[%emt 0:00:23]} Qxb8 {[%emt 0:00:28]} 31. Rb4 {[%emt 0:00:16] Weighted Error Value: White=0.10 (very precise) /Black=0.29 (precise)} 1-0

[Event "MCCT Oslo Esports Cup 2022"]
[Site "Oslo"]
[Date "2022.04.20"]
[Round "5.3"]
[White "Van Foreest, Jorden"]
[Black "Carlsen, Magnus"]
[Result "1/2-1/2"]
[ECO "C50"]
[WhiteElo "2714"]
[BlackElo "2864"]
[Annotator "TA"]
[PlyCount "121"]
[EventDate "2022.04.14"]
[EventType "tourn"]
[EventCountry "NOR"]
[SourceTitle "playchess.com"]
[Source "ChessBase"]
[SourceQuality "1"]
[TimeControl "900+10"]

{[%evp 10,121,14,12,17,26,15,4,5,6,28,20,39,27,25,14,16,21,26,20,26,27,22,6,14,16,21,9,11,4,9,0,8,-7,-9,-11,0,-20,-20,-45,-5,-15,-20,-10,-12,-8,0,0,0,0,0,0,20,19,23,8,19,0,0,0,0,0,0,0,0,8,8,8,8,8,8,0,8,0,21,0,0,0,83,69,76,95,95,112,122,133,107,8,200,191,179,187,162,23,22,8,8,8,11,8,13,8,13,13,13,8,8,8,8,8,8,8,8,8]} 1. e4 {[%emt 0:00:00]} e5 {[%emt 0:00:00]} 2. Nf3 {[%emt 0:00:04]} Nc6 {[%emt 0:00:02]} 3. Bc4 {[%emt 0:00:03]} Bc5 {[%emt 0:00:03]} 4. d3 {[%emt 0:00:09]} Nf6 {[%emt 0:00:06]} 5. Bg5 {[%emt 0:00:03]} h6 {[%emt 0:00:08]} 6. Bh4 {[%emt 0:00:05]} Be7 {[%emt 0:00:08] C50: Hungarian Defence and Giuoco Pianissimo.} 7. Bg3 {[%emt 0:00:15]} d6 {[%emt 0:00:02]} 8. c3 {[%emt 0:00:04]} O-O {[%emt 0:00:02]} 9. a4 {[%emt 0:00:09][%cal Ba2a4,Ba4a5][%mdl 32]} Nh7 {[%emt 0:01:18]} 10. Nbd2 {[%emt 0:00:25]} Kh8 {[%emt 0:00:05]} 11. a5 {[%emt 0:01:09]} a6 {[%emt 0:00:04]} 12. O-O {[%emt 0:00:04]} f5 {[%emt 0:00:03]} 13. exf5 {[%emt 0:00:04]} Bxf5 {[%emt 0:00:02]} 14. Re1 {[%emt 0:00:59]} Ng5 {[%emt 0:00:03] [#]} 15. Nxg5 $146 {[%emt 0:00:40]} ({Predecessor:} 15. Qb3 Rb8 16. Nxg5 Bxg5 17. Ne4 Bh4 18. Be6 Bh7 19. Bg4 Na7 20. Qd1 Nb5 21. Qe2 c5 22. Bf3 Rc8 {½-½ (22) Tomashevsky,E (2711)-Aronian,L (2785) Sharjah 2017}) 15... Bxg5 {[%emt 0:00:01]} 16. Nf3 {[%emt 0:00:01]} Bf6 {[%emt 0:04:41]} 17. Bd5 {[%emt 0:00:26]} Rb8 {[%emt 0:00:16]} 18. Be4 {[%emt 0:01:33]} Qd7 {[%emt 0:00:08]} 19. Bxf5 {[%emt 0:00:44]} Qxf5 {[%emt 0:00:03]} 20. Qe2 {[%emt 0:00:00]} Rbe8 {[%emt 0:00:37]} 21. Qe4 {[%emt 0:00:13]} Qxe4 {[%emt 0:00:03]} 22. dxe4 {[%emt 0:00:16]} g5 {[%emt 0:00:12][%cal Bg7g5,Bg5g4][%mdl 32]} 23. Nd2 {[%emt 0:01:03]} g4 {[%emt 0:00:03]} 24. Nc4 {[%emt 0:00:55]} Bg5 {[%emt 0:00:49] White should prevent ...h5.} (24... h5 $5 {[%cal Rh5h4]} 25. f3 gxf3 26. gxf3 Re6 $17) 25. Rf1 $1 {[%emt 0:01:41]} h5 {[%emt 0:00:19]} 26. f3 {[%emt 0:00:03]} gxf3 {[%emt 0:00:01]} 27. Rxf3 {[%emt 0:00:07]} Nd8 {[%emt 0:01:00]} 28. Raf1 {[%emt 0:00:20]} Rxf3 {[%emt 0:00:04]} 29. Rxf3 {[%emt 0:00:04]} Kg7 {[%emt 0:00:03]} 30. h4 {[%emt 0:01:12]} Be7 {[%emt 0:00:10]} 31. Ne3 {[%emt 0:00:19]} Ne6 {[%emt 0:00:09]} 32. Bf2 {[%emt 0:00:15]} Bd8 {[%emt 0:00:17]} 33. b4 {[%emt 0:00:55]} Rf8 {[%emt 0:00:16]} 34. Rxf8 {[%emt 0:00:48]} Nxf8 $11 {[%emt 0:00:02][%mdl 4096] Endgame KBN-KBN} 35. g3 {[%emt 0:00:09]} Nd7 {[%emt 0:00:20] White must now prevent ...Nf6.} 36. Kg2 {[%emt 0:00:02]} Nf6 {[%emt 0:00:01]} 37. Kf3 {[%emt 0:00:01]} Kg6 {[%emt 0:00:01]} 38. Be1 {[%emt 0:00:12]} Be7 {[%emt 0:00:04]} 39. c4 {[%emt 0:00:50]} Bf8 {[%emt 0:01:17]} 40. Bc3 {[%emt 0:01:25]} Bh6 {[%emt 0:00:52]} 41. Nf5 {[%emt 0:00:10]} Bc1 {[%emt 0:01:37]} 42. c5 {[%emt 0:02:22]} dxc5 {[%emt 0:00:02]} 43. bxc5 {[%emt 0:00:02][%cal Oc5c6] Threatens to win with c6!} Nd7 {[%emt 0:00:02]} (43... Ng4 $1 $11) 44. c6 $1 $16 {[%emt 0:00:05]} bxc6 {[%emt 0:00:02]} 45. Ne7+ {[%emt 0:00:01]} Kf6 {[%emt 0:00:10]} 46. Nxc6 {[%emt 0:00:00]} Ke6 {[%emt 0:00:01]} 47. g4 {[%emt 0:01:06] &Bianco is more active.} hxg4+ {[%emt 0:00:02]} 48. Kxg4 {[%emt 0:00:00]} Nf6+ $2 {[%emt 0:00:50]} (48... Nc5 $1 $11 {and Black stays safe.}) 49. Kf3 $18 {[%emt 0:00:02] aiming for Nb4.} Nd7 {[%emt 0:00:10] [#]} 50. Nb4 $1 {[%emt 0:00:25]} Nc5 {[%emt 0:00:05] [#]} 51. h5 {[%emt 0:00:11]} (51. Nd5 $1 $18) 51... Kf6 $1 $11 {[%emt 0:00:27]} 52. Nd5+ {[%emt 0:00:03] The position is equal.} Kg5 {[%emt 0:00:03]} 53. Bxe5 {[%emt 0:00:06]} Kxh5 {[%emt 0:00:51]} 54. Bxc7 {[%emt 0:00:20]} Bd2 {[%emt 0:00:01]} 55. Ke2 {[%emt 0:00:51]} Nxe4 {[%emt 0:00:04]} 56. Kd3 {[%emt 0:00:02]} Bxa5 $1 {[%emt 0:00:01]} 57. Kxe4 {[%emt 0:00:06]} Bxc7 {[%emt 0:00:02]} 58. Nxc7 {[%emt 0:00:00]} a5 {[%emt 0:00:00]} 59. Nb5 {[%emt 0:00:00]} a4 {[%emt 0:00:00]} 60. Kd4 {[%emt 0:00:01]} a3 {[%emt 0:00:01]} 61. Nxa3 {[%emt 0:00:01] Weighted Error Value: White=0.09 (flawless) /Black=0.11 (very precise)} 1/2-1/2